{"text_format":"3","workbook":"xlsx","n_sheets":5,"sheets":["PRICING SCHEDULE NON-VAT (SEK)","PRICING SCHEDULE NON-VAT (CAP)","PRICING SCHEDULE NON-VAT (WAT)","PRICING SCHEDULE NON-VAT (VHE)","PRICING SCHEDULE NON-VAT (MOP)"],"not_rendered":{"images":1},"read":"whole","date_system":"1900"}

{"sheet":"PRICING SCHEDULE NON-VAT (SEK)","index":0,"n_rows":74,"n_cols":11,"rows_kept":74,"merged":[[1,0,1,2],[6,2,6,8],[8,2,8,6],[10,2,10,9],[12,2,12,10],[14,0,14,1],[14,2,14,4],[14,5,14,7],[14,8,14,10],[58,0,58,8],[60,0,60,3],[61,1,61,3],[62,1,62,3],[63,1,63,3],[64,1,64,3],[68,1,68,5],[73,0,73,2]]}
[]
["ANNEXURE A: PRICING SCHEDULE - NON VAT VENDORS"]
[]
[null,"SEKHUKHUNE DISTRICT"]
[]
[]
[null,null,"DEPARTMENT OF SPORT, ARTS AND CULTURE"]
[]
[null,"BID NUMBER","DSAC2026/27-B3"]
[]
[null,"BID DESCRIPTION","SERVICES FOR ACCOMMODATION, FLIGHT, AND CAR RENTAL AND SHUTTLE"]
[]
[null,"BIDDER NAME"]
[]
["1.1  TRANSACTION SERVICE FEES - OFF-SITE",null,"YEAR 1",null,null,"YEAR 2",null,null,"YEAR 3"]
["ITEM","Transaction Type","Estimated Volume","Unit Price\n(excl VAT)","TOTAL Price\n(excl VAT)","Estimated Volume","Unit Price\n(excl VAT)","TOTAL Price\n(excl VAT)","Estimated Volume","Unit Price\n(excl VAT)","TOTAL Price\n(excl VAT)"]
[1,"Air Travel - International (per person)",500,0,{"$f":"C17*D17","v":0},500,0,{"$f":"F17*G17","v":0},500,0,{"$f":"I17*J17","v":0}]
[2,"Air Travel - International - Cancellation",500,0,{"$f":"C18*D18","v":0},500,0,{"$f":"F18*G18","v":0},500,0,{"$f":"I18*J18","v":0}]
[3,"Air Travel - International - Re-issue",500,0,0,500,0,0,500,0,0]
[4,"Air Travel - Domestic (per person)",500,0,0,500,0,0,500,0,0]
[5,"Air Travel - Domestic Cancellation ",500,0,0,500,0,0,500,0,0]
[6,"Air Travel - Domestic - Re-issue ",500,0,0,500,0,0,500,0,0]
[7,"Air Travel - International - Refunds ",500,0,0,500,0,0,500,0,0]
[8,"Air Travel - Domestic - Refunds",500,0,{"$f":"C24*D24","v":0},500,0,0,500,0,0]
[9,"Accommodation - Domestic (per person)",500,0,0,500,0,0,500,0,0]
[10,"Accommodation - Domestic cancellation",500,0,0,500,0,0,500,0,0]
[11,"Accommodation - International (per person)",500,0,0,500,0,0,500,0,0]
[12,"Accommodation - International Cancellation",500,0,0,500,0,0,500,0,0]
[13,"Car Rental – Domestic (per car)",500,0,0,500,0,0,500,0,0]
[14,"Car Rental – Domestic cancellation",500,0,0,500,0,0,500,0,0]
[15,"Car Rental – International (per car)",500,0,0,500,0,0,500,0,0]
[16,"Car Rental – International cancellation",500,0,0,500,0,0,500,0,0]
[17,"Transfers/Shuttle – Domestic (per Shuttle)",500,0,0,500,0,0,500,0,0]
[18,"Transfers/Shuttle – Domestic cancellation",500,0,0,500,0,0,500,0,0]
[19,"Transfers/Shuttle – International (per Shuttle)",500,0,0,500,0,0,500,0,0]
[20,"Transfers/Shuttle – International cancellation",500,0,0,500,0,0,500,0,0]
[21,"Super Luxury Bus/Coach Bookings (per vehicle) 32 - 40 Seater",500,0,0,500,0,0,500,0,0]
[22,"Super Luxury Bus/Coach Bookings (per vehicle) 60 - 70 Seater",500,0,{"$f":"C38*D38","v":0},500,0,{"$f":"F38*G38","v":0},500,0,{"$f":"I38*J38","v":0}]
[23,"Super Luxury Bus/Coach Bookings cancellation 32 - 40 Seater",500,0,0,500,0,0,500,0,0]
[24,"Super Luxury Bus/Coach Bookings cancellation 60 - 70 Seater",500,0,0,500,0,0,500,0,0]
[25,"Train bookings – International (per person)",500,0,0,500,0,0,500,0,0]
[26,"Train bookings – International cancellation",500,0,0,500,0,0,500,0,0]
[27,"Visa Assistance (Provision of documents and advice) (per person)",500,0,0,500,0,0,500,0,0]
[28,"Courier services for travel documentation (visa & passports) (per person)",500,0,0,500,0,0,500,0,0]
[29,"SMS Notifications (per person)",500,0,0,500,0,0,500,0,0]
[30,"Parking bookings (per car)",500,0,0,500,0,0,500,0,0]
[31,"Cancellations",500,0,0,500,0,0,500,0,0]
[32,"Changes to bookings",500,0,0,500,0,0,500,0,0]
[33,"After Hours Services",500,0,0,500,0,0,500,0,0]
[34,"Additional Ad-hoc Reports (per report)",500,0,0,500,0,0,500,0,0]
[35,"Customised Reports (per report)",500,0,0,500,0,0,500,0,0]
[36,"Bill Back",500,0,{"$f":"C52*D52","v":0},500,0,{"$f":"F52*G52","v":0},500,0,{"$f":"I52*J52","v":0}]
[37,"Travel Lodge Card Reconciliation",500,0,0,500,0,0,500,0,0]
[38,"Debtors Account Reconciliation",500,0,0,500,0,0,500,0,0]
[39,"Service Fee (per person)",500,0,0,500,0,0,500,0,0]
[]
[null,"TOTAL",null,null,{"$f":"SUM(E17:E55)","v":0},null,null,{"$f":"SUM(H17:H55)","v":0},null,null,{"$f":"SUM(K17:K55)","v":0}]
[]
["TOTAL BID PRICE YEAR 1 + YEAR 2 + YEAR 3 EXCLUDING VAT (NON VAT VENDORS)",{"$nulls":9},{"$f":"E57+H57+K57","v":{"v":0,"d":"R0.00"}}]
[]
["1.2  CONFERENCE  AND TRANSACTION SERVICE FEES - OFF-SITE %",{"$nulls":3},"YEAR 1",null,null,"YEAR 2",null,null,"YEAR 3"]
["Item","Description ",null,null,"%",null,null,"%",null,null,"%"]
[1,"Conference Fee (as a % of the Total turnover of the event) (per facility)",null,null,0,null,null,0,null,null,0]
[2,"Mark-up % of the total cost - (per transaction fee - Item 1.1 above)",null,null,0,null,null,0,null,null,0]
[null,"Total %",null,null,{"$f":"SUM(E63:E64)","v":0},null,null,{"$f":"SUM(H63:H64)","v":0},null,null,{"$f":"SUM(K63:K64)","v":0}]
[]
[null,"TOTAL % FOR YEAR 1 + YEAR 2 + YEAR 3",{"$nulls":8},{"$f":"E65+H65+K65","v":0}]
[]
[null,"TOTALS FOR ITEM 1.1 AND ITEM 1.2 TO BE USED FOR EVALUATION",{"$nulls":8},{"$f":"K59+K67","v":{"v":0,"d":"0.00"}}]
[]
[]
[]
[]
["Signature and date of authorized company representative"]

{"sheet":"PRICING SCHEDULE NON-VAT (CAP)","index":1,"n_rows":74,"n_cols":11,"rows_kept":74,"merged":[[1,0,1,2],[6,2,6,8],[8,2,8,6],[10,2,10,9],[12,2,12,10],[14,0,14,1],[14,2,14,4],[14,5,14,7],[14,8,14,10],[58,0,58,8],[60,0,60,3],[61,1,61,3],[62,1,62,3],[63,1,63,3],[64,1,64,3],[68,1,68,5],[73,0,73,2]]}
[]
["ANNEXURE A: PRICING SCHEDULE - NON VAT VENDORS"]
[]
[null,"CAPRICORN DISTRICT"]
[]
[]
[null,null,"DEPARTMENT OF SPORT, ARTS AND CULTURE"]
[]
[null,"BID NUMBER","DSAC2026/27-B3"]
[]
[null,"BID DESCRIPTION","SERVICES FOR ACCOMMODATION, FLIGHT, AND CAR RENTAL AND SHUTTLE"]
[]
[null,"BIDDER NAME"]
[]
["1.1  TRANSACTION SERVICE FEES - OFF-SITE",null,"YEAR 1",null,null,"YEAR 2",null,null,"YEAR 3"]
["ITEM","Transaction Type","Estimated Volume","Unit Price\n(excl VAT)","TOTAL Price\n(excl VAT)","Estimated Volume","Unit Price\n(excl VAT)","TOTAL Price\n(excl VAT)","Estimated Volume","Unit Price\n(excl VAT)","TOTAL Price\n(excl VAT)"]
[1,"Air Travel - International (per person)",500,0,{"$f":"C17*D17","v":0},500,0,{"$f":"F17*G17","v":0},500,0,{"$f":"I17*J17","v":0}]
[2,"Air Travel - International - Cancellation",500,0,{"$f":"C18*D18","v":0},500,0,{"$f":"F18*G18","v":0},500,0,{"$f":"I18*J18","v":0}]
[3,"Air Travel - International - Re-issue",500,0,0,500,0,0,500,0,0]
[4,"Air Travel - Domestic (per person)",500,0,0,500,0,0,500,0,0]
[5,"Air Travel - Domestic Cancellation ",500,0,0,500,0,0,500,0,0]
[6,"Air Travel - Domestic - Re-issue ",500,0,0,500,0,0,500,0,0]
[7,"Air Travel - International - Refunds ",500,0,0,500,0,0,500,0,0]
[8,"Air Travel - Domestic - Refunds",500,0,{"$f":"C24*D24","v":0},500,0,0,500,0,0]
[9,"Accommodation - Domestic (per person)",500,0,0,500,0,0,500,0,0]
[10,"Accommodation - Domestic cancellation",500,0,0,500,0,0,500,0,0]
[11,"Accommodation - International (per person)",500,0,0,500,0,0,500,0,0]
[12,"Accommodation - International Cancellation",500,0,0,500,0,0,500,0,0]
[13,"Car Rental – Domestic (per car)",500,0,0,500,0,0,500,0,0]
[14,"Car Rental – Domestic cancellation",500,0,0,500,0,0,500,0,0]
[15,"Car Rental – International (per car)",500,0,0,500,0,0,500,0,0]
[16,"Car Rental – International cancellation",500,0,0,500,0,0,500,0,0]
[17,"Transfers/Shuttle – Domestic (per Shuttle)",500,0,0,500,0,0,500,0,0]
[18,"Transfers/Shuttle – Domestic cancellation",500,0,0,500,0,0,500,0,0]
[19,"Transfers/Shuttle – International (per Shuttle)",500,0,0,500,0,0,500,0,0]
[20,"Transfers/Shuttle – International cancellation",500,0,0,500,0,0,500,0,0]
[21,"Super Luxury Bus/Coach Bookings (per vehicle) 32 - 40 Seater",500,0,0,500,0,0,500,0,0]
[22,"Super Luxury Bus/Coach Bookings (per vehicle) 60 - 70 Seater",500,0,{"$f":"C38*D38","v":0},500,0,{"$f":"F38*G38","v":0},500,0,{"$f":"I38*J38","v":0}]
[23,"Super Luxury Bus/Coach Bookings cancellation 32 - 40 Seater",500,0,0,500,0,0,500,0,0]
[24,"Super Luxury Bus/Coach Bookings cancellation 60 - 70 Seater",500,0,0,500,0,0,500,0,0]
[25,"Train bookings – International (per person)",500,0,0,500,0,0,500,0,0]
[26,"Train bookings – International cancellation",500,0,0,500,0,0,500,0,0]
[27,"Visa Assistance (Provision of documents and advice) (per person)",500,0,0,500,0,0,500,0,0]
[28,"Courier services for travel documentation (visa & passports) (per person)",500,0,0,500,0,0,500,0,0]
[29,"SMS Notifications (per person)",500,0,0,500,0,0,500,0,0]
[30,"Parking bookings (per car)",500,0,0,500,0,0,500,0,0]
[31,"Cancellations",500,0,0,500,0,0,500,0,0]
[32,"Changes to bookings",500,0,0,500,0,0,500,0,0]
[33,"After Hours Services",500,0,0,500,0,0,500,0,0]
[34,"Additional Ad-hoc Reports (per report)",500,0,0,500,0,0,500,0,0]
[35,"Customised Reports (per report)",500,0,0,500,0,0,500,0,0]
[36,"Bill Back",500,0,0,500,0,0,500,0,0]
[37,"Travel Lodge Card Reconciliation",500,0,0,500,0,0,500,0,0]
[38,"Debtors Account Reconciliation",500,0,0,500,0,0,500,0,0]
[39,"Service Fee (per person)",500,0,0,500,0,0,500,0,0]
[]
[null,"TOTAL",null,null,{"$f":"SUM(E17:E55)","v":0},null,null,{"$f":"SUM(H17:H55)","v":0},null,null,{"$f":"SUM(K17:K55)","v":0}]
[]
["TOTAL BID PRICE YEAR 1 + YEAR 2 + YEAR 3 EXCLUDING VAT (NON VAT VENDORS)",{"$nulls":9},{"$f":"E57+H57+K57","v":{"v":0,"d":"R0.00"}}]
[]
["1.2  CONFERENCE  AND TRANSACTION SERVICE FEES - OFF-SITE %",{"$nulls":3},"YEAR 1",null,null,"YEAR 2",null,null,"YEAR 3"]
["Item","Description ",null,null,"%",null,null,"%",null,null,"%"]
[1,"Conference Fee (as a % of the Total turnover of the event) (per facility)",null,null,0,null,null,0,null,null,0]
[2,"Mark-up % of the total cost - (per transaction fee - Item 1.1 above)",null,null,0,null,null,0,null,null,0]
[null,"Total %",null,null,{"$f":"SUM(E63:E64)","v":0},null,null,{"$f":"SUM(H63:H64)","v":0},null,null,{"$f":"SUM(K63:K64)","v":0}]
[]
[null,"TOTAL % FOR YEAR 1 + YEAR 2 + YEAR 3",{"$nulls":8},{"$f":"E65+H65+K65","v":0}]
[]
[null,"TOTALS FOR ITEM 1.1 AND ITEM 1.2 TO BE USED FOR EVALUATION",{"$nulls":8},{"$f":"K59+K67","v":{"v":0,"d":"0.00"}}]
[]
[]
[]
[]
["Signature and date of authorized company representative"]

{"sheet":"PRICING SCHEDULE NON-VAT (WAT)","index":2,"n_rows":74,"n_cols":11,"rows_kept":74,"merged":[[1,0,1,2],[6,2,6,8],[8,2,8,6],[10,2,10,9],[12,2,12,10],[14,0,14,1],[14,2,14,4],[14,5,14,7],[14,8,14,10],[58,0,58,8],[60,0,60,3],[61,1,61,3],[62,1,62,3],[63,1,63,3],[64,1,64,3],[68,1,68,5],[73,0,73,2]]}
[]
["ANNEXURE A: PRICING SCHEDULE - NON VAT VENDORS"]
[]
[null,"WATERBERG DISTRICT"]
[]
[]
[null,null,"DEPARTMENT OF SPORT, ARTS AND CULTURE"]
[]
[null,"BID NUMBER","DSAC2026/27-B3"]
[]
[null,"BID DESCRIPTION","SERVICES FOR ACCOMMODATION, FLIGHT, AND CAR RENTAL AND SHUTTLE"]
[]
[null,"BIDDER NAME"]
[]
["1.1  TRANSACTION SERVICE FEES - OFF-SITE",null,"YEAR 1",null,null,"YEAR 2",null,null,"YEAR 3"]
["ITEM","Transaction Type","Estimated Volume","Unit Price\n(excl VAT)","TOTAL Price\n(excl VAT)","Estimated Volume","Unit Price\n(excl VAT)","TOTAL Price\n(excl VAT)","Estimated Volume","Unit Price\n(excl VAT)","TOTAL Price\n(excl VAT)"]
[1,"Air Travel - International (per person)",500,0,{"$f":"C17*D17","v":0},500,0,{"$f":"F17*G17","v":0},500,0,{"$f":"I17*J17","v":0}]
[2,"Air Travel - International - Cancellation",500,0,{"$f":"C18*D18","v":0},500,0,{"$f":"F18*G18","v":0},500,0,{"$f":"I18*J18","v":0}]
[3,"Air Travel - International - Re-issue",500,0,0,500,0,0,500,0,0]
[4,"Air Travel - Domestic (per person)",500,0,0,500,0,0,500,0,0]
[5,"Air Travel - Domestic Cancellation ",500,0,0,500,0,0,500,0,0]
[6,"Air Travel - Domestic - Re-issue ",500,0,0,500,0,0,500,0,0]
[7,"Air Travel - International - Refunds ",500,0,0,500,0,0,500,0,0]
[8,"Air Travel - Domestic - Refunds",500,0,{"$f":"C24*D24","v":0},500,0,0,500,0,0]
[9,"Accommodation - Domestic (per person)",500,0,0,500,0,0,500,0,0]
[10,"Accommodation - Domestic cancellation",500,0,0,500,0,0,500,0,0]
[11,"Accommodation - International (per person)",500,0,0,500,0,0,500,0,0]
[12,"Accommodation - International Cancellation",500,0,0,500,0,0,500,0,0]
[13,"Car Rental – Domestic (per car)",500,0,0,500,0,0,500,0,0]
[14,"Car Rental – Domestic cancellation",500,0,0,500,0,0,500,0,0]
[15,"Car Rental – International (per car)",500,0,0,500,0,0,500,0,0]
[16,"Car Rental – International cancellation",500,0,0,500,0,0,500,0,0]
[17,"Transfers/Shuttle – Domestic (per Shuttle)",500,0,0,500,0,0,500,0,0]
[18,"Transfers/Shuttle – Domestic cancellation",500,0,0,500,0,0,500,0,0]
[19,"Transfers/Shuttle – International (per Shuttle)",500,0,0,500,0,0,500,0,0]
[20,"Transfers/Shuttle – International cancellation",500,0,0,500,0,0,500,0,0]
[21,"Super Luxury Bus/Coach Bookings (per vehicle) 32 - 40 Seater",500,0,{"$f":"C37*D37","v":0},500,0,{"$f":"F37*G37","v":0},500,0,{"$f":"I37*J37","v":0}]
[22,"Super Luxury Bus/Coach Bookings (per vehicle) 60 - 70 Seater",500,0,0,500,0,0,500,0,0]
[23,"Super Luxury Bus/Coach Bookings cancellation 32 - 40 Seater",500,0,0,500,0,0,500,0,0]
[24,"Super Luxury Bus/Coach Bookings cancellation 60 - 70 Seater",500,0,0,500,0,0,500,0,0]
[25,"Train bookings – International (per person)",500,0,0,500,0,0,500,0,0]
[26,"Train bookings – International cancellation",500,0,0,500,0,0,500,0,0]
[27,"Visa Assistance (Provision of documents and advice) (per person)",500,0,0,500,0,0,500,0,0]
[28,"Courier services for travel documentation (visa & passports) (per person)",500,0,0,500,0,0,500,0,0]
[29,"SMS Notifications (per person)",500,0,0,500,0,0,500,0,0]
[30,"Parking bookings (per car)",500,0,0,500,0,0,500,0,0]
[31,"Cancellations",500,0,0,500,0,0,500,0,0]
[32,"Changes to bookings",500,0,0,500,0,0,500,0,0]
[33,"After Hours Services",500,0,0,500,0,0,500,0,0]
[34,"Additional Ad-hoc Reports (per report)",500,0,0,500,0,0,500,0,0]
[35,"Customised Reports (per report)",500,0,0,500,0,0,500,0,0]
[36,"Bill Back",500,0,0,500,0,0,500,0,0]
[37,"Travel Lodge Card Reconciliation",500,0,0,500,0,0,500,0,0]
[38,"Debtors Account Reconciliation",500,0,0,500,0,0,500,0,0]
[39,"Service Fee (per person)",500,0,0,500,0,0,500,0,0]
[]
[null,"TOTAL",null,null,{"$f":"SUM(E17:E55)","v":0},null,null,{"$f":"SUM(H17:H55)","v":0},null,null,{"$f":"SUM(K17:K55)","v":0}]
[]
["TOTAL BID PRICE YEAR 1 + YEAR 2 + YEAR 3 EXCLUDING VAT (NON VAT VENDORS)",{"$nulls":9},{"$f":"E57+H57+K57","v":{"v":0,"d":"R0.00"}}]
[]
["1.2  CONFERENCE  AND TRANSACTION SERVICE FEES - OFF-SITE %",{"$nulls":3},"YEAR 1",null,null,"YEAR 2",null,null,"YEAR 3"]
["Item","Description ",null,null,"%",null,null,"%",null,null,"%"]
[1,"Conference Fee (as a % of the Total turnover of the event) (per facility)",null,null,0,null,null,0,null,null,0]
[2,"Mark-up % of the total cost - (per transaction fee - Item 1.1 above)",null,null,0,null,null,0,null,null,0]
[null,"Total %",null,null,{"$f":"SUM(E63:E64)","v":0},null,null,{"$f":"SUM(H63:H64)","v":0},null,null,{"$f":"SUM(K63:K64)","v":0}]
[]
[null,"TOTAL % FOR YEAR 1 + YEAR 2 + YEAR 3",{"$nulls":8},{"$f":"E65+H65+K65","v":0}]
[]
[null,"TOTALS FOR ITEM 1.1 AND ITEM 1.2 TO BE USED FOR EVALUATION",{"$nulls":8},{"$f":"K59+K67","v":{"v":0,"d":"0.00"}}]
[]
[]
[]
[]
["Signature and date of authorized company representative"]

{"sheet":"PRICING SCHEDULE NON-VAT (VHE)","index":3,"n_rows":74,"n_cols":11,"rows_kept":74,"merged":[[1,0,1,2],[6,2,6,8],[8,2,8,6],[10,2,10,9],[12,2,12,10],[14,0,14,1],[14,2,14,4],[14,5,14,7],[14,8,14,10],[58,0,58,8],[60,0,60,3],[61,1,61,3],[62,1,62,3],[63,1,63,3],[64,1,64,3],[68,1,68,5],[73,0,73,2]]}
[]
["ANNEXURE A: PRICING SCHEDULE - NON VAT VENDORS"]
[]
[null,"VHEMBE DISTRICT"]
[]
[]
[null,null,"DEPARTMENT OF SPORT, ARTS AND CULTURE"]
[]
[null,"BID NUMBER","DSAC2026/27-B3"]
[]
[null,"BID DESCRIPTION","SERVICES FOR ACCOMMODATION, FLIGHT, AND CAR RENTAL AND SHUTTLE"]
[]
[null,"BIDDER NAME"]
[]
["1.1  TRANSACTION SERVICE FEES - OFF-SITE",null,"YEAR 1",null,null,"YEAR 2",null,null,"YEAR 3"]
["ITEM","Transaction Type","Estimated Volume","Unit Price\n(excl VAT)","TOTAL Price\n(excl VAT)","Estimated Volume","Unit Price\n(excl VAT)","TOTAL Price\n(excl VAT)","Estimated Volume","Unit Price\n(excl VAT)","TOTAL Price\n(excl VAT)"]
[1,"Air Travel - International (per person)",500,0,{"$f":"C17*D17","v":0},500,0,{"$f":"F17*G17","v":0},500,0,{"$f":"I17*J17","v":0}]
[2,"Air Travel - International - Cancellation",500,0,{"$f":"C18*D18","v":0},500,0,{"$f":"F18*G18","v":0},500,0,{"$f":"I18*J18","v":0}]
[3,"Air Travel - International - Re-issue",500,0,0,500,0,0,500,0,0]
[4,"Air Travel - Domestic (per person)",500,0,0,500,0,0,500,0,0]
[5,"Air Travel - Domestic Cancellation ",500,0,0,500,0,0,500,0,0]
[6,"Air Travel - Domestic - Re-issue ",500,0,0,500,0,0,500,0,0]
[7,"Air Travel - International - Refunds ",500,0,0,500,0,0,500,0,0]
[8,"Air Travel - Domestic - Refunds",500,0,{"$f":"C24*D24","v":0},500,0,0,500,0,0]
[9,"Accommodation - Domestic (per person)",500,0,0,500,0,0,500,0,0]
[10,"Accommodation - Domestic cancellation",500,0,0,500,0,0,500,0,0]
[11,"Accommodation - International (per person)",500,0,0,500,0,0,500,0,0]
[12,"Accommodation - International Cancellation",500,0,0,500,0,0,500,0,0]
[13,"Car Rental – Domestic (per car)",500,0,0,500,0,0,500,0,0]
[14,"Car Rental – Domestic cancellation",500,0,0,500,0,0,500,0,0]
[15,"Car Rental – International (per car)",500,0,0,500,0,0,500,0,0]
[16,"Car Rental – International cancellation",500,0,0,500,0,0,500,0,0]
[17,"Transfers/Shuttle – Domestic (per Shuttle)",500,0,0,500,0,0,500,0,0]
[18,"Transfers/Shuttle – Domestic cancellation",500,0,0,500,0,0,500,0,0]
[19,"Transfers/Shuttle – International (per Shuttle)",500,0,0,500,0,0,500,0,0]
[20,"Transfers/Shuttle – International cancellation",500,0,0,500,0,0,500,0,0]
[21,"Super Luxury Bus/Coach Bookings (per vehicle) 32 - 40 Seater",500,0,0,500,0,0,500,0,0]
[22,"Super Luxury Bus/Coach Bookings (per vehicle) 60 - 70 Seater",500,0,{"$f":"C38*D38","v":0},500,0,{"$f":"F38*G38","v":0},500,0,{"$f":"I38*J38","v":0}]
[23,"Super Luxury Bus/Coach Bookings cancellation 32 - 40 Seater",500,0,0,500,0,0,500,0,0]
[24,"Super Luxury Bus/Coach Bookings cancellation 60 - 70 Seater",500,0,0,500,0,0,500,0,0]
[25,"Train bookings – International (per person)",500,0,0,500,0,0,500,0,0]
[26,"Train bookings – International cancellation",500,0,0,500,0,0,500,0,0]
[27,"Visa Assistance (Provision of documents and advice) (per person)",500,0,0,500,0,0,500,0,0]
[28,"Courier services for travel documentation (visa & passports) (per person)",500,0,0,500,0,0,500,0,0]
[29,"SMS Notifications (per person)",500,0,0,500,0,0,500,0,0]
[30,"Parking bookings (per car)",500,0,0,500,0,0,500,0,0]
[31,"Cancellations",500,0,0,500,0,0,500,0,0]
[32,"Changes to bookings",500,0,0,500,0,0,500,0,0]
[33,"After Hours Services",500,0,0,500,0,0,500,0,0]
[34,"Additional Ad-hoc Reports (per report)",500,0,0,500,0,0,500,0,0]
[35,"Customised Reports (per report)",500,0,0,500,0,0,500,0,0]
[36,"Bill Back",500,0,0,500,0,0,500,0,0]
[37,"Travel Lodge Card Reconciliation",500,0,0,500,0,0,500,0,0]
[38,"Debtors Account Reconciliation",500,0,0,500,0,0,500,0,0]
[39,"Service Fee (per person)",500,0,0,500,0,0,500,0,0]
[]
[null,"TOTAL",null,null,{"$f":"SUM(E17:E55)","v":0},null,null,{"$f":"SUM(H17:H55)","v":0},null,null,{"$f":"SUM(K17:K55)","v":0}]
[]
["TOTAL BID PRICE YEAR 1 + YEAR 2 + YEAR 3 EXCLUDING VAT (NON VAT VENDORS)",{"$nulls":9},{"$f":"E57+H57+K57","v":{"v":0,"d":"R0.00"}}]
[]
["1.2  CONFERENCE  AND TRANSACTION SERVICE FEES - OFF-SITE %",{"$nulls":3},"YEAR 1",null,null,"YEAR 2",null,null,"YEAR 3"]
["Item","Description ",null,null,"%",null,null,"%",null,null,"%"]
[1,"Conference Fee (as a % of the Total turnover of the event) (per facility)",null,null,0,null,null,0,null,null,0]
[2,"Mark-up % of the total cost - (per transaction fee - Item 1.1 above)",null,null,0,null,null,0,null,null,0]
[null,"Total %",null,null,{"$f":"SUM(E63:E64)","v":0},null,null,{"$f":"SUM(H63:H64)","v":0},null,null,{"$f":"SUM(K63:K64)","v":0}]
[]
[null,"TOTAL % FOR YEAR 1 + YEAR 2 + YEAR 3",{"$nulls":8},{"$f":"E65+H65+K65","v":0}]
[]
[null,"TOTALS FOR ITEM 1.1 AND ITEM 1.2 TO BE USED FOR EVALUATION",{"$nulls":8},{"$f":"K59+K67","v":{"v":0,"d":"0.00"}}]
[]
[]
[]
[]
["Signature and date of authorized company representative"]

{"sheet":"PRICING SCHEDULE NON-VAT (MOP)","index":4,"n_rows":74,"n_cols":11,"rows_kept":74,"merged":[[1,0,1,2],[6,2,6,8],[8,2,8,6],[10,2,10,9],[12,2,12,10],[14,0,14,1],[14,2,14,4],[14,5,14,7],[14,8,14,10],[58,0,58,8],[60,0,60,3],[61,1,61,3],[62,1,62,3],[63,1,63,3],[64,1,64,3],[68,1,68,5],[73,0,73,2]]}
[]
["ANNEXURE A: PRICING SCHEDULE - NON VAT VENDORS"]
[]
[null,"MOPANI DISTRICT"]
[]
[]
[null,null,"DEPARTMENT OF SPORT, ARTS AND CULTURE"]
[]
[null,"BID NUMBER","DSAC2026/27-B3"]
[]
[null,"BID DESCRIPTION","SERVICES FOR ACCOMMODATION, FLIGHT, AND CAR RENTAL AND SHUTTLE"]
[]
[null,"BIDDER NAME"]
[]
["1.1  TRANSACTION SERVICE FEES - OFF-SITE",null,"YEAR 1",null,null,"YEAR 2",null,null,"YEAR 3"]
["ITEM","Transaction Type","Estimated Volume","Unit Price\n(excl VAT)","TOTAL Price\n(excl VAT)","Estimated Volume","Unit Price\n(excl VAT)","TOTAL Price\n(excl VAT)","Estimated Volume","Unit Price\n(excl VAT)","TOTAL Price\n(excl VAT)"]
[1,"Air Travel - International (per person)",500,0,{"$f":"C17*D17","v":0},500,0,{"$f":"F17*G17","v":0},500,0,{"$f":"I17*J17","v":0}]
[2,"Air Travel - International - Cancellation",500,0,{"$f":"C18*D18","v":0},500,0,{"$f":"F18*G18","v":0},500,0,{"$f":"I18*J18","v":0}]
[3,"Air Travel - International - Re-issue",500,0,0,500,0,0,500,0,0]
[4,"Air Travel - Domestic (per person)",500,0,0,500,0,0,500,0,0]
[5,"Air Travel - Domestic Cancellation ",500,0,0,500,0,0,500,0,0]
[6,"Air Travel - Domestic - Re-issue ",500,0,0,500,0,0,500,0,0]
[7,"Air Travel - International - Refunds ",500,0,0,500,0,0,500,0,0]
[8,"Air Travel - Domestic - Refunds",500,0,{"$f":"C24*D24","v":0},500,0,0,500,0,0]
[9,"Accommodation - Domestic (per person)",500,0,0,500,0,0,500,0,0]
[10,"Accommodation - Domestic cancellation",500,0,0,500,0,0,500,0,0]
[11,"Accommodation - International (per person)",500,0,0,500,0,0,500,0,0]
[12,"Accommodation - International Cancellation",500,0,0,500,0,0,500,0,0]
[13,"Car Rental – Domestic (per car)",500,0,0,500,0,0,500,0,0]
[14,"Car Rental – Domestic cancellation",500,0,0,500,0,0,500,0,0]
[15,"Car Rental – International (per car)",500,0,0,500,0,0,500,0,0]
[16,"Car Rental – International cancellation",500,0,0,500,0,0,500,0,0]
[17,"Transfers/Shuttle – Domestic (per Shuttle)",500,0,0,500,0,0,500,0,0]
[18,"Transfers/Shuttle – Domestic cancellation",500,0,0,500,0,0,500,0,0]
[19,"Transfers/Shuttle – International (per Shuttle)",500,0,0,500,0,0,500,0,0]
[20,"Transfers/Shuttle – International cancellation",500,0,0,500,0,0,500,0,0]
[21,"Super Luxury Bus/Coach Bookings (per vehicle) 32 - 40 Seater",500,0,0,500,0,0,500,0,0]
[22,"Super Luxury Bus/Coach Bookings (per vehicle) 60 - 70 Seater",500,0,{"$f":"C38*D38","v":0},500,0,{"$f":"F38*G38","v":0},500,0,{"$f":"I38*J38","v":0}]
[23,"Super Luxury Bus/Coach Bookings cancellation 32 - 40 Seater",500,0,0,500,0,0,500,0,0]
[24,"Super Luxury Bus/Coach Bookings cancellation 60 - 70 Seater",500,0,0,500,0,0,500,0,0]
[25,"Train bookings – International (per person)",500,0,0,500,0,0,500,0,0]
[26,"Train bookings – International cancellation",500,0,0,500,0,0,500,0,0]
[27,"Visa Assistance (Provision of documents and advice) (per person)",500,0,0,500,0,0,500,0,0]
[28,"Courier services for travel documentation (visa & passports) (per person)",500,0,0,500,0,0,500,0,0]
[29,"SMS Notifications (per person)",500,0,0,500,0,0,500,0,0]
[30,"Parking bookings (per car)",500,0,0,500,0,0,500,0,0]
[31,"Cancellations",500,0,0,500,0,0,500,0,0]
[32,"Changes to bookings",500,0,0,500,0,0,500,0,0]
[33,"After Hours Services",500,0,0,500,0,0,500,0,0]
[34,"Additional Ad-hoc Reports (per report)",500,0,0,500,0,0,500,0,0]
[35,"Customised Reports (per report)",500,0,0,500,0,0,500,0,0]
[36,"Bill Back",500,0,0,500,0,0,500,0,0]
[37,"Travel Lodge Card Reconciliation",500,0,0,500,0,0,500,0,0]
[38,"Debtors Account Reconciliation",500,0,0,500,0,0,500,0,0]
[39,"Service Fee (per person)",500,0,0,500,0,0,500,0,0]
[]
[null,"TOTAL",null,null,{"$f":"SUM(E17:E55)","v":0},null,null,{"$f":"SUM(H17:H55)","v":0},null,null,{"$f":"SUM(K17:K55)","v":0}]
[]
["TOTAL BID PRICE YEAR 1 + YEAR 2 + YEAR 3 EXCLUDING VAT (NON VAT VENDORS)",{"$nulls":9},{"$f":"E57+H57+K57","v":{"v":0,"d":"R0.00"}}]
[]
["1.2  CONFERENCE  AND TRANSACTION SERVICE FEES - OFF-SITE %",{"$nulls":3},"YEAR 1",null,null,"YEAR 2",null,null,"YEAR 3"]
["Item","Description ",null,null,"%",null,null,"%",null,null,"%"]
[1,"Conference Fee (as a % of the Total turnover of the event) (per facility)",null,null,0,null,null,0,null,null,0]
[2,"Mark-up % of the total cost - (per transaction fee - Item 1.1 above)",null,null,0,null,null,0,null,null,0]
[null,"Total %",null,null,{"$f":"SUM(E63:E64)","v":0},null,null,{"$f":"SUM(H63:H64)","v":0},null,null,{"$f":"SUM(K63:K64)","v":0}]
[]
[null,"TOTAL % FOR YEAR 1 + YEAR 2 + YEAR 3",{"$nulls":8},{"$f":"E65+H65+K65","v":0}]
[]
[null,"TOTALS FOR ITEM 1.1 AND ITEM 1.2 TO BE USED FOR EVALUATION",{"$nulls":8},{"$f":"K59+K67","v":{"v":0,"d":"0.00"}}]
[]
[]
[]
[]
["Signature and date of authorized company representative"]